bitfinex/quotes_SOLUSD_20250506
["timestamp","ask_amount","ask_price","bid_price","bid_amount"]
[1746572472231,160.75136756,146.38,146.34,17.56]
[1746572472440,160.75136756,146.37,146.34,17.56]
[1746572472962,160.75136756,146.37,146.34,24.39332956]
[1746572473163,137.7,146.37,146.34,17.56]
[1746572473350,23.05136756,146.35,146.33,17.56]
[1746572473561,160.75136756,146.34,146.33,17.56]
[1746572473943,137.7,146.34,146.33,17.56]
[1746572474147,137.7,146.34,146.33,24.39386865]
[1746572474455,137.7,146.34,146.33,47.44523621]
[1746572474648,137.7,146.34,146.33,24.39386865]
[1746572474851,137.7,146.34,146.33,17.56]
[1746572475354,160.75136756,146.34,146.33,17.56]
[1746572475860,29.88476922,146.34,146.28,17.56]
[1746572476043,23.05136756,146.3,146.28,17.56]
[1746572476241,23.05136756,146.29,146.28,17.56]
[1746572476867,23.05136756,146.3,146.28,17.56]
[1746572477341,160.75136756,146.29,146.28,17.56]
[1746572477543,160.75136756,146.29,146.26,17.56]
[1746572477953,137.7,146.29,146.26,17.56]
[1746572478148,160.75136756,146.29,146.26,17.56]
[1746572478651,160.75136756,146.28,146.24,24.39805778]
[1746572478852,160.75136756,146.27,146.24,24.39805778]
[1746572479547,23.05136756,146.26,146.24,17.56]
[1746572480968,144.53677098,146.27,146.24,17.56]
[1746572481266,23.05136756,146.25,146.21,6.83928276]
[1746572481450,137.7,146.24,146.21,23.05136756]
[1746572481650,137.7,146.24,146.2,273.74]
[1746572481966,137.7,146.24,146.2,296.79136756]
[1746572482182,137.7,146.24,146.22,23.05136756]
[1746572482868,137.7,146.24,146.23,23.05136756]
[1746572483067,137.7,146.24,146.23,29.88990958]
[1746572483448,137.7,146.28,146.23,30.03207115]
[1746572483778,137.7,146.28,146.24,40.63136756]
[1746572483779,137.7,146.27,146.24,40.63136756]
[1746572483945,137.7,146.27,146.24,17.58]
[1746572484148,160.75136756,146.27,146.24,17.58]
[1746572484367,137.7,146.27,146.24,40.63136756]
[1746572484560,137.7,146.27,146.26,23.05136756]
[1746572484969,137.7,146.31,146.27,6.8366719]
[1746572485153,137.7,146.3,146.28,23.05136756]
[1746572485361,137.7,146.3,146.29,23.05136756]
[1746572485560,137.7,146.3,146.28,23.05136756]
[1746572486877,137.7,146.3,146.29,6.83573723]
[1746572488662,137.7,146.3,146.29,29.88710479]
[1746572488952,137.7,146.3,146.29,47.56710479]
[1746572489356,160.75136756,146.35,146.29,41.74724188]
[1746572489577,160.75136756,146.34,146.3,0.14216157]
[1746572489855,160.75136756,146.34,146.3,40.87352913]
[1746572490172,137.7,146.34,146.33,23.05136756]
[1746572490776,137.7,146.39,146.33,23.19352913]
[1746572490981,137.7,146.39,146.37,23.05136756]
[1746572491175,137.7,146.39,146.36,23.05136756]
[1746572491556,23.05136756,146.37,146.34,41.75906739]
[1746572491755,23.05136756,146.38,146.34,64.81043495]
[1746572492068,137.7,146.37,146.31,36.32964886]
[1746572492267,23.05136756,146.36,146.32,0.14216157]
[1746572492572,23.05136756,146.36,146.32,23.19352913]
[1746572492994,23.05136756,146.35,146.31,40.73136756]
[1746572493975,23.05136756,146.35,146.31,17.68]
[1746572494181,23.05136756,146.34,146.31,17.68]
[1746572494393,160.75136756,146.34,146.31,17.68]
[1746572495181,23.05136756,146.33,146.31,17.68]
[1746572495383,160.75136756,146.33,146.31,17.68]
[1746572495880,160.75136756,146.33,146.27,6.83624751]
[1746572496087,137.7,146.32,146.29,23.05136756]
[1746572496763,137.7,146.32,146.28,17.68]
[1746572497065,137.7,146.31,146.28,17.68]
[1746572497267,137.7,146.31,146.29,23.05136756]
[1746572497570,137.7,146.31,146.29,29.88705703]
[1746572497765,137.7,146.31,146.3,23.19352913]
[1746572497973,23.05136756,146.35,146.3,23.19352913]
[1746572498172,160.75136756,146.34,146.29,29.88705703]
[1746572498565,160.75136756,146.34,146.3,23.05136756]
[1746572499058,160.75136756,146.34,146.3,29.88640503]
[1746572499258,137.7,146.34,146.31,23.05136756]
[1746572500685,137.7,146.34,146.33,23.05136756]
[1746572500879,137.7,146.34,146.32,23.05136756]
[1746572501074,137.7,146.34,146.32,40.71136756]
[1746572501283,137.7,146.34,146.32,47.54568459]
[1746572502186,137.7,146.34,146.32,17.66]
[1746572502590,167.58487139,146.34,146.29,24.63769481]
[1746572502767,137.7,146.34,146.32,23.05136756]
[1746572503193,137.7,146.34,146.32,29.8854738]
[1746572505889,137.7,146.34,146.32,6.83410624]
[1746572506085,137.7,146.34,146.32,0.14216157]
[1746572506586,137.7,146.34,146.32,23.19352913]
[1746572507393,137.7,146.34,146.33,23.05136756]
[1746572508195,137.7,146.34,146.33,29.88523621]
[1746572508571,137.7,146.34,146.33,6.83386865]
[1746572508885,137.7,146.34,146.32,29.88548177]
[1746572509210,137.7,146.34,146.31,30.02814477]
[1746572509893,160.75136756,146.34,146.3,17.66]
[1746572510067,23.05136756,146.32,146.28,40.73136756]
[1746572510270,23.05136756,146.32,146.28,17.68]
[1746572510687,137.7,146.33,146.28,17.68]
[1746572510888,23.05136756,146.3,146.28,17.68]
[1746572511371,23.05136756,146.31,146.28,17.68]
[1746572511685,137.7,146.32,146.29,29.88678692]
[1746572512771,137.7,146.32,146.3,23.19352913]
[1746572513402,137.7,146.32,146.3,0.14216157]
[1746572514188,137.7,146.32,146.3,6.97735707]
[1746572514500,137.7,146.32,146.31,23.05136756]
[1746572514890,137.7,146.32,146.3,47.68872463]
[1746572515093,23.05136756,146.31,146.3,17.66]
[1746572515290,137.7,146.32,146.3,47.54653997]
[1746572516202,137.7,146.32,146.3,24.49517241]
[1746572516503,137.7,146.32,146.3,40.71136756]
[1746572516680,137.7,146.32,146.3,17.66]
[1746572517503,137.7,146.32,146.3,47.54658321]
[1746572518196,137.7,146.32,146.3,24.49521565]
[1746572519279,167.58583938,146.32,146.3,17.66]
[1746572519486,160.75136756,146.32,146.3,17.66]
[1746572520281,167.58571477,146.32,146.3,17.66]
[1746572521508,160.75136756,146.31,146.28,17.68]
[1746572521685,23.05136756,146.32,146.28,17.68]
[1746572521885,137.7,146.35,146.28,17.68]
[1746572522105,23.05136756,146.32,146.28,17.68]
[1746572522399,23.05136756,146.32,146.28,24.51609731]
[1746572522911,23.05136756,146.31,146.28,17.68]
[1746572523111,23.05136756,146.29,146.28,17.68]
[1746572523613,137.7,146.31,146.28,17.68]
[1746572523614,23.05136756,146.3,146.28,17.68]
[1746572524412,26.0,146.33,146.24,58.37136756]
[1746572524413,167.58710479,146.29,146.24,58.37136756]
[1746572524590,160.75136756,146.28,146.24,58.37136756]
[1746572524905,23.05136756,146.27,146.24,35.32]
[1746572525211,160.75136756,146.28,146.24,40.73136756]
[1746572525798,137.7,146.27,146.24,17.68]
[1746572526106,160.75136756,146.26,146.24,17.68]
[1746572526502,137.7,146.25,146.24,17.68]
[1746572526817,137.7,146.24,146.2,291.54]
[1746572527006,23.05136756,146.23,146.2,273.9]
[1746572527194,160.75136756,146.22,146.2,17.68]
[1746572527398,160.75136756,146.21,146.2,17.68]
[1746572527612,160.75136756,146.21,146.17,17.64]
[1746572527813,137.7,146.2,146.17,40.69136756]
[1746572528319,137.7,146.2,146.19,23.05136756]
[1746572528620,137.7,146.2,146.17,6.84122977]
[1746572528621,137.7,146.2,146.18,23.05136756]
[1746572529520,137.7,146.2,146.17,6.84122977]
[1746572529710,137.7,146.2,146.17,29.89259733]
[1746572530202,137.7,146.2,146.18,23.05136756]
[1746572530402,137.7,146.2,146.19,6.84041316]
[1746572531525,137.7,146.2,146.18,6.84081281]
[1746572531741,137.7,146.2,146.18,29.89218037]
[1746572534323,137.7,146.2,146.18,6.84081281]
[1746572534821,137.7,146.2,146.18,29.89218037]
[1746572536221,137.7,146.2,146.18,23.05136756]
[1746572537524,137.7,146.2,146.17,6.98351068]
[1746572537825,137.7,146.2,146.18,23.05136756]
[1746572538230,137.7,146.2,146.19,6.84041316]
[1746572538531,137.7,146.2,146.19,29.89178072]
[1746572538740,137.7,146.2,146.19,6.84041316]
[1746572538904,137.7,146.2,146.17,23.05136756]
[1746572539242,137.7,146.2,146.18,23.05136756]
[1746572539419,137.7,146.2,146.16,24.52163748]
[1746572539420,137.7,146.2,146.19,23.05136756]
[1746572540231,137.7,146.2,146.19,29.89178072]
[1746572540412,137.7,146.2,146.19,6.84041316]
[1746572543538,137.7,146.2,146.19,47.47178072]
[1746572544414,137.7,146.24,146.19,64.71497519]
[1746572544716,137.7,146.24,146.22,23.05136756]
[1746572545643,137.7,146.24,146.23,23.05136756]
[1746572546230,137.7,146.24,146.21,17.68]
[1746572546438,160.75136756,146.24,146.21,17.68]
[1746572546647,23.05136756,146.23,146.21,17.68]
[1746572547231,160.75136756,146.24,146.21,17.68]
[1746572548131,137.7,146.24,146.21,47.57075116]
[1746572548342,23.05136756,146.22,146.18,6.84076122]
[1746572548517,137.7,146.21,146.18,29.89212878]
[1746572548712,137.7,146.21,146.19,23.05136756]
[1746572549645,137.7,146.21,146.18,29.89212878]
[1746572550138,137.7,146.21,146.2,23.05136756]
[1746572550527,137.7,146.21,146.2,29.89131284]
[1746572551242,137.7,146.21,146.2,30.03347441]
[1746572553440,160.75136756,146.24,146.2,30.03347441]
[1746572553642,137.7,146.24,146.21,23.05136756]
[1746572553942,160.75136756,146.24,146.2,30.03347441]
[1746572554137,137.7,146.24,146.2,30.03347441]
[1746572555144,137.7,146.24,146.2,6.98210685]
[1746572555145,160.75136756,146.24,146.2,6.98210685]
[1746572555322,160.75136756,146.24,146.2,6.83994528]
[1746572555525,160.75136756,146.24,146.2,29.89131284]
[1746572555727,137.7,146.24,146.21,23.05136756]
[1746572557744,137.7,146.24,146.22,6.83900971]
[1746572559049,137.7,146.24,146.23,14.42433345]
[1746572559630,137.7,146.24,146.23,21.26287547]
[1746572562042,137.7,146.24,146.23,6.83854202]
[1746572562238,137.7,146.24,146.23,21.26287547]
[1746572562656,137.7,146.27,146.23,35.82937049]
[1746572562866,137.7,146.27,146.26,14.42433345]
[1746572563841,137.7,146.27,146.26,21.26147279]
[1746572564242,137.7,146.27,146.26,6.83713934]
[1746572565360,137.7,146.27,146.26,21.26147279]
[1746572566354,137.7,146.27,146.26,6.83713934]
[1746572567661,152.12433345,146.27,146.25,35.16]
[1746572567963,152.12433345,146.27,146.25,17.58]
[1746572568471,137.7,146.27,146.25,24.41752666]
[1746572570740,14.42433345,146.26,146.25,17.58]
[1746572571069,14.42433345,146.26,146.23,6.8383979]
[1746572571240,137.7,146.25,146.23,6.8383979]
[1746572571950,152.12433345,146.25,146.21,24.41928189]
[1746572572346,152.12433345,146.25,146.21,38.84361534]
[1746572572662,1.6299,146.27,146.15,6.84228532]
[1746572572663,14.42433345,146.22,146.15,6.84228532]
[1746572572965,137.7,146.21,146.19,14.42433345]
[1746572573357,137.7,146.21,146.2,14.42433345]
[1746572573542,137.7,146.21,146.19,32.00433345]
[1746572574558,137.7,146.21,146.19,38.84471236]
[1746572576177,137.7,146.21,146.2,14.56649502]
[1746572576471,137.7,146.21,146.19,56.42471236]
[1746572576850,137.7,146.21,146.19,35.16]
[1746572577044,137.7,146.21,146.19,49.58433345]
[1746572577247,137.7,146.21,146.19,35.16]
[1746572577563,137.7,146.21,146.19,49.58433345]
[1746572578742,137.7,146.21,146.19,56.424729]
[1746572579566,137.7,146.21,146.19,49.58433345]
[1746572579743,137.7,146.21,146.19,35.16]
[1746572580068,137.7,146.21,146.19,49.58433345]
[1746572580569,137.7,146.21,146.19,35.16]
[1746572580772,137.7,146.21,146.19,49.58433345]
[1746572581071,152.12433345,146.2,146.15,17.56]
[1746572581274,152.12433345,146.19,146.16,17.58]
[1746572582273,158.96494228,146.19,146.15,17.56]
[1746572582651,152.12433345,146.18,146.15,17.56]
[1746572582965,14.42433345,146.17,146.13,0.907971]
[1746572583174,137.7,146.16,146.13,0.907971]
[1746572583371,152.12433345,146.16,146.13,0.907971]
[1746572584393,23.94164173,146.19,146.13,0.907971]
[1746572584394,14.42433345,146.14,146.13,0.907971]
[1746572585161,21.26708697,146.14,146.13,0.907971]
[1746572585485,14.42433345,146.14,146.13,0.907971]
[1746572587453,21.26708697,146.14,146.13,0.907971]
[1746572587776,14.42433345,146.14,146.13,0.907971]
[1746572588349,21.26708697,146.14,146.13,0.907971]
[1746572590680,14.42433345,146.14,146.13,0.907971]
[1746572594665,26.0,146.16,146.13,0.907971]
[1746572594991,14.42433345,146.15,146.13,0.907971]
[1746572595162,137.7,146.15,146.13,7.75102637]
[1746572596589,152.12433345,146.15,146.13,7.75102637]
[1746572597792,14.42433345,146.14,146.13,0.907971]
[1746572599205,21.26708697,146.14,146.13,0.907971]
[1746572599501,47.26708697,146.14,146.13,0.907971]
[1746572600176,39.91673583,146.14,146.13,0.907971]
[1746572600379,26.0,146.11,146.04,42.00726963]
[1746572600578,14.42433345,146.08,146.04,56.43160308]
[1746572600779,14.42433345,146.08,146.04,42.00726963]
[1746572600977,14.42433345,146.07,146.04,35.16]
[1746572601203,14.42433345,146.05,146.04,17.58]
[1746572601395,14.42433345,146.06,146.04,17.58]
[1746572601908,6.84573998,146.08,146.04,17.58]
[1746572602203,160.84129379,146.06,146.04,17.58]
[1746572603197,137.7,146.06,146.04,47.56851094]
[1746572604088,137.7,146.06,146.05,23.14129379]
[1746572604288,160.84129379,146.1,146.05,23.28345536]
[1746572604494,160.84129379,146.1,146.06,23.14129379]
[1746572604796,23.14129379,146.09,146.05,23.28345536]
[1746572605003,23.14129379,146.09,146.05,0.14216157]
[1746572605303,23.14129379,146.09,146.06,6.84650143]
[1746572605501,23.14129379,146.08,146.04,24.42735084]
[1746572605703,23.14129379,146.08,146.04,47.56864463]
[1746572605704,137.7,146.07,146.04,47.56864463]
[1746572606207,160.84129379,146.07,146.04,24.42735084]
[1746572606405,160.84129379,146.07,146.04,17.58]
[1746572606582,160.84129379,146.07,146.04,24.42742735]
[1746572607091,23.14129379,146.06,146.04,17.58]
[1746572607494,160.84129379,146.07,146.04,24.42734079]
[1746572607703,23.14129379,146.06,146.04,17.58]
[1746572609717,137.7,146.07,146.04,24.42740513]
[1746572610018,137.7,146.07,146.05,23.14129379]
[1746572610907,137.7,146.07,146.06,23.14129379]
[1746572611511,137.7,146.07,146.05,6.84660251]
[1746572611687,137.7,146.07,146.05,29.9878963]
[1746572611890,137.7,146.07,146.06,23.14129379]
[1746572612113,137.7,146.1,146.06,23.14129379]
[1746572612307,160.84129379,146.1,146.05,6.84660251]
[1746572612616,160.84129379,146.1,146.05,29.9878963]
[1746572612807,160.84129379,146.1,146.05,6.84660251]
[1746572613114,160.84129379,146.1,146.05,29.9878963]
[1746572613723,23.14129379,146.09,146.05,29.9878963]
[1746572614114,23.14129379,146.09,146.05,6.84660251]
[1746572616430,137.7,146.08,146.05,6.84660251]
[1746572616605,160.84129379,146.08,146.05,6.84660251]
[1746572618625,160.84129379,146.08,146.04,24.42723376]
[1746572619121,23.14129379,146.07,146.04,24.42723376]
[1746572619329,23.14129379,146.06,146.04,17.58]
[1746572620512,144.5457477,146.08,146.04,17.58]
[1746572620720,144.5457477,146.08,146.04,24.42733211]
[1746572620913,23.14129379,146.07,146.04,24.42733211]
[1746572621115,23.14129379,146.07,146.04,17.58]
[1746572621537,23.14129379,146.06,146.04,17.58]
[1746572621843,14.46206867,146.06,146.04,17.58]
[1746572622536,144.5457477,146.08,146.0,56.47138373]
[1746572622537,152.16206867,146.05,146.0,56.47138373]
[1746572622837,152.16206867,146.04,146.0,56.47138373]
[1746572623228,152.16206867,146.04,146.0,42.00931506]
[1746572623415,14.46206867,146.03,146.0,42.00931506]
[1746572623611,14.46206867,146.03,146.0,17.58]
[1746572624517,14.46206867,146.03,146.0,24.42931495]
[1746572625544,152.16206867,146.04,146.0,38.89138362]
[1746572625719,137.7,146.04,146.0,38.89138362]
[1746572626133,137.7,146.04,146.0,56.47138362]
[1746572626324,137.7,146.03,146.0,56.47138362]
[1746572628746,137.7,146.03,146.02,14.46206867]
[1746572629041,137.7,146.03,146.01,0.14216157]
[1746572629238,137.7,146.03,146.01,14.60423024]
[1746572629746,137.7,146.03,146.01,0.14216157]
[1746572629920,137.7,146.03,146.01,14.60423024]
[1746572630937,137.7,146.03,146.02,21.45260717]
[1746572631639,152.16206867,146.07,146.02,21.45260717]
[1746572631862,152.16206867,146.07,146.03,14.46206867]
[1746572632012,137.7,146.06,146.03,14.46206867]
[1746572633338,137.7,146.06,146.02,6.9905385]
[1746572633540,137.7,146.06,146.03,14.46206867]
[1746572633962,137.7,146.06,146.04,14.46206867]
[1746572635526,137.7,146.06,146.05,6.84697021]
[1746572637552,137.7,146.06,146.04,6.84743905]
[1746572637747,137.7,146.06,146.05,14.46206867]
[1746572638338,137.7,146.06,146.04,21.30950772]
[1746572638933,137.7,146.06,146.05,14.46206867]
[1746572639830,137.7,146.06,146.05,21.30903888]
[1746572640954,137.7,146.06,146.04,0.14216157]
[1746572641251,137.7,146.06,146.05,17.56]
[1746572641452,137.7,146.06,146.05,32.02206867]
[1746572642328,137.7,146.06,146.05,24.40697021]
[1746572642947,137.7,146.06,146.05,38.86903888]
[1746572643458,137.7,146.06,146.05,24.40697021]
[1746572644138,137.7,146.06,146.05,38.86903888]
[1746572646960,137.7,146.06,146.05,17.56]
[1746572647171,137.7,146.06,146.05,24.40697021]
[1746572648959,6.84514203,146.09,146.01,6.84871177]
[1746572648960,137.7,146.05,146.01,6.84871177]
[1746572649259,137.7,146.05,146.03,14.46206867]
[1746572649461,137.7,146.08,146.05,6.84697021]
[1746572649648,137.7,146.08,146.06,35.26216157]
[1746572649847,137.7,146.08,146.06,49.72423024]
[1746572650045,137.7,146.08,146.06,35.26216157]
[1746572650246,137.7,146.08,146.06,49.72423024]
[1746572650462,137.7,146.08,146.06,35.12]
[1746572650768,152.16206867,146.08,146.06,35.12]
[1746572650970,14.46206867,146.07,146.06,35.12]
[1746572651341,14.46206867,146.07,146.06,17.56]
[1746572651666,152.16206867,146.08,146.06,17.56]
[1746572652773,159.00766443,146.08,146.06,17.56]
[1746572653377,14.46206867,146.07,146.06,17.56]
[1746572653756,14.46206867,146.07,146.03,24.40771864]
[1746572653954,137.7,146.06,146.03,24.40771864]
[1746572654572,137.7,146.06,146.03,38.86978731]
[1746572654957,137.7,146.06,146.04,14.46206867]
[1746572655474,137.7,146.06,146.03,24.40771864]
[1746572655651,152.16206867,146.06,146.03,17.56]
[1746572655849,14.46206867,146.05,146.03,17.56]
[1746572656468,14.46206867,146.05,146.02,17.56]
[1746572657380,152.16206867,146.06,146.02,17.56]
[1746572658048,144.54661302,146.06,146.02,17.56]
[1746572658268,14.46206867,146.05,146.02,17.56]
[1746572659069,21.30903932,146.05,146.02,17.56]
[1746572659552,14.46206867,146.05,146.02,17.56]
[1746572661473,137.7,146.04,146.02,17.56]
[1746572664048,137.7,146.03,146.02,17.56]
[1746572664247,152.16206867,146.03,145.98,24.41013582]
[1746572664482,14.46206867,146.01,145.98,24.41013582]
[1746572664773,14.46206867,146.0,145.98,17.56]
[1746572666154,14.46206867,145.99,145.98,17.56]
[1746572666668,14.46206867,145.99,145.95,256.62]
[1746572666863,137.7,145.98,145.95,271.08206867]
[1746572667464,137.7,145.98,145.95,263.47164194]
[1746572667653,137.7,145.98,145.95,277.93371061]
[1746572667857,152.16206867,145.97,145.94,35.12]
[1746572668398,137.7,145.97,145.94,35.12]
[1746572668570,137.7,145.97,145.95,14.46206867]
[1746572669794,137.7,145.97,145.96,21.31326077]
[1746572669956,170.54804506,146.03,145.96,21.45542234]
[1746572670296,170.54804506,146.03,145.98,14.46206867]
[1746572670297,152.16206867,146.02,145.98,14.46206867]
[1746572670759,137.7,146.02,145.98,14.46206867]
[1746572670962,152.16206867,146.02,145.98,14.46206867]
[1746572671666,137.7,146.01,145.98,21.31220791]
[1746572671984,137.7,146.01,145.98,30.00462682]
[1746572673363,137.7,146.01,145.98,6.85013924]
[1746572673584,137.7,146.01,145.98,30.00462682]
[1746572674887,137.7,146.01,145.99,23.15448758]
[1746572675181,137.7,146.01,146.0,23.15448758]
[1746572675771,137.7,146.01,145.99,35.3]
[1746572675964,137.7,146.01,146.0,23.15448758]
[1746572676165,137.7,146.01,146.0,30.00380264]
[1746572676462,137.7,146.01,146.0,6.84931506]
[1746572676687,137.7,146.01,146.0,30.00380264]
[1746572677789,137.7,146.01,146.0,6.84931506]
[1746572677994,137.7,146.01,146.0,30.00380264]
[1746572678483,137.7,146.01,145.99,42.14972318]
[1746572678791,137.7,146.01,145.99,65.30421076]
[1746572679687,137.7,146.01,146.0,23.15448758]
[1746572680065,137.7,146.01,145.99,42.14972318]
[1746572680388,137.7,146.01,146.0,23.15448758]
[1746572680588,137.7,146.01,145.99,65.30421076]
[1746572680777,137.7,146.01,145.99,42.14972318]
[1746572681289,137.7,146.01,145.99,65.30421076]
[1746572683892,137.7,146.01,146.0,23.15448758]
[1746572684093,26.0,146.06,146.0,23.29664915]
[1746572684094,137.7,146.04,146.0,23.29664915]
[1746572684298,137.7,146.04,146.02,23.15448758]
[1746572684889,137.7,146.07,146.03,23.29664915]
[1746572685074,137.7,146.07,146.06,23.15448758]
[1746572686002,137.7,146.07,146.06,30.00098901]
[1746572686602,137.7,146.07,146.04,35.3]
[1746572686603,137.7,146.07,146.05,0.14216157]
[1746572686801,137.7,146.07,146.05,23.29664915]
[1746572687499,137.7,146.07,146.06,23.15448758]
[1746572688397,137.7,146.07,146.06,30.00098901]
[1746572689781,137.7,146.07,146.06,30.14315058]
[1746572691510,137.7,146.11,146.06,30.14315058]
[1746572691796,137.7,146.1,146.08,6.84530729]
[1746572692003,26.0,146.14,146.09,49.79493712]
[1746572692304,137.7,146.13,146.11,14.45277555]
[1746572692795,137.7,146.13,146.1,14.45277555]
[1746572694094,137.64046719,146.13,146.1,21.29706061]
[1746572694780,14.45277555,146.11,146.09,35.2]
[1746572695691,14.45277555,146.1,146.09,35.2]
[1746572696872,137.64046719,146.12,146.09,35.2]
[1746572697195,14.45277555,146.11,146.09,35.2]
[1746572697877,21.29701281,146.11,146.09,35.2]
[1746572698576,14.45277555,146.11,146.09,35.2]
[1746572699504,14.45277555,146.1,146.09,35.2]
[1746572699877,14.45277555,146.11,146.09,35.2]
[1746572700391,137.64046719,146.1,146.09,35.2]
[1746572703907,17.10584922,146.15,146.09,35.2]
[1746572703908,137.64046719,146.14,146.09,56.6400326]
[1746572704092,137.64046719,146.14,146.11,14.45277555]
[1746572704418,137.64046719,146.14,146.11,21.29673137]
[1746572704583,137.64046719,146.14,146.11,14.45277555]
[1746572704903,137.64046719,146.14,146.1,21.29719406]
[1746572705084,158.93614116,146.14,146.1,21.29719406]
[1746572705286,158.93614116,146.14,146.1,6.84441851]
[1746572706213,152.09324274,146.14,146.1,6.84441851]
[1746572706411,152.09324274,146.14,146.1,21.29719406]
[1746572706947,137.64046719,146.14,146.11,14.45277555]
[1746572707213,144.48323199,146.14,146.1,14.45277555]
[1746572707682,152.09324274,146.14,146.1,14.45277555]
[1746572707885,158.93605114,146.14,146.1,14.45277555]
[1746572708187,158.93614768,146.14,146.1,21.29715725]
[1746572708396,137.64046719,146.14,146.1,21.29715725]
[1746572708584,158.93621378,146.14,146.09,35.2]
[1746572708782,144.48343823,146.14,146.09,14.45277555]
[1746572709003,158.93621378,146.14,146.09,49.57277555]
[1746572709495,137.64046719,146.13,146.09,49.57277555]
[1746572709699,137.64046719,146.12,146.09,49.57277555]
[1746572710010,137.64046719,146.12,146.11,14.45277555]
[1746572711990,137.64046719,146.12,146.11,21.29693406]
[1746572713611,137.64046719,146.12,146.11,21.43909563]
[1746572714196,137.64046719,146.17,146.11,63.64744076]
[1746572714392,137.64046719,146.17,146.15,14.45277555]
[1746572714901,137.64046719,146.17,146.16,14.45277555]
[1746572716317,137.64046719,146.2,146.16,6.98356243]
[1746572716522,137.64046719,146.2,146.18,14.45277555]
[1746572717921,18.61686187,146.26,146.19,49.55277555]
[1746572717922,137.64046719,146.24,146.19,49.55277555]
[1746572718215,152.09324274,146.24,146.19,49.55277555]
[1746572718608,152.09324274,146.24,146.19,35.1]
[1746572718609,14.45277555,146.22,146.19,35.1]
[1746572719015,14.45277555,146.2,146.14,35.1]
[1746572719319,152.09324274,146.19,146.15,14.45277555]
[1746572719518,137.64046719,146.19,146.15,14.45277555]
[1746572719719,152.09324274,146.19,146.15,14.45277555]
[1746572720124,152.09324274,146.19,146.15,21.2949854]
[1746572720520,137.64046719,146.19,146.16,14.45277555]
[1746572722017,158.9338618,146.19,146.14,24.54488006]
[1746572722225,152.09324274,146.18,146.15,17.54]
[1746572722405,14.45277555,146.17,146.14,24.40272977]
[1746572723121,137.64046719,146.18,146.15,14.45277555]
[1746572724011,137.64046719,146.18,146.14,24.40272977]
[1746572724214,137.64046719,146.18,146.15,14.45277555]
[1746572724524,137.64046719,146.18,146.14,17.56]
[1746572724724,137.64046719,146.17,146.14,17.56]
[1746572725026,14.45277555,146.15,146.09,41.92509548]
[1746572725206,14.45277555,146.13,146.09,41.92509548]
[1746572725408,152.09324274,146.12,146.09,17.54]
[1746572725727,137.64046719,146.11,146.09,17.54]
[1746572726100,137.64046719,146.11,146.09,31.99277555]
[1746572726303,137.64046719,146.11,146.09,17.54]
[1746572726627,152.09324274,146.11,146.09,17.54]
[1746572728526,152.09324274,146.1,146.06,17.54]
[1746572728730,137.64046719,146.09,146.06,17.54]
[1746572728908,137.64046719,146.09,146.05,31.99277555]
[1746572729108,152.09324274,146.09,146.05,31.99277555]
[1746572729823,152.09324274,146.09,146.06,6.84640793]
[1746572730027,137.64046719,146.09,146.06,21.29918348]
[1746572730423,137.64046719,146.09,146.08,14.45277555]
[1746572730622,137.64046719,146.09,146.08,14.59493712]
[1746572731020,137.64046719,146.09,146.08,47.69736153]
[1746572731326,137.64046719,146.09,146.08,33.24458598]
[1746572731529,178.09324274,146.15,146.08,33.24458598]
[1746572731830,137.64046719,146.14,146.11,23.11339966]
[1746572732126,137.64046719,146.14,146.11,6.84415851]
[1746572732429,137.64046719,146.14,146.11,29.95755817]
[1746572732614,137.64046719,146.14,146.11,23.11339966]
[1746572733032,160.75386685,146.14,146.1,17.70216157]
[1746572733202,167.59683066,146.14,146.1,17.56]
[1746572733408,137.64046719,146.14,146.11,23.11339966]
[1746572733932,137.64046719,146.14,146.11,0.14216157]